[Event "Titled Tuesday Blitz December 13 Late 2022"]
[White "Abasov, Nijat"]
[Black "Adewumi, Tanitoluwa"]
[WhiteFideId "13402960"]
[BlackFideId "30966396"]
[WhiteElo "2546"]
[BlackElo "2495"]
[Result "1/2-1/2"]
[Round "01"]
[TimeControl "180+1"]
[Date "2022.12.13"]
[WhiteClock "0:00:06"]
[BlackClock "0:00:05"]

1. d4 {[%clk 0:03:00]}  Nf6 {[%clk 0:02:57]} 2. Nf3 {[%clk 0:03:01]}  e6 {[%clk 0:02:46]} 3. Bf4 {[%clk 0:03:02]}  c5 {[%clk 0:02:43]} 4. e3 {[%clk 0:03:02]}  Nc6 {[%clk 0:02:39]} 5. Nc3 {[%clk 0:03:02]}  a6 {[%clk 0:02:37]} 6. d5 {[%clk 0:03:02]}  Nb4 {[%clk 0:02:23]} 7. d6 {[%clk 0:02:52]}  Nbd5 {[%clk 0:02:21]} 8. Nxd5 {[%clk 0:02:49]}  Nxd5 {[%clk 0:02:21]} 9. Bg3 {[%clk 0:02:49]}  Qb6 {[%clk 0:02:11]} 10. e4 {[%clk 0:02:35]}  Nf6 {[%clk 0:02:02]} 11. e5 {[%clk 0:02:27]}  Ne4 {[%clk 0:01:58]} 12. Bd3 {[%clk 0:02:27]}  Nxg3 {[%clk 0:01:50]} 13. hxg3 {[%clk 0:02:28]}  c4 {[%clk 0:01:43]} 14. Bxc4 {[%clk 0:02:21]}  Qb4+ {[%clk 0:01:40]} 15. Nd2 {[%clk 0:02:20]}  b5 {[%clk 0:01:35]} 16. Qf3 {[%clk 0:01:49]}  Rb8 {[%clk 0:01:23]} 17. Bb3 {[%clk 0:01:41]}  Qd4 {[%clk 0:01:01]} 18. Qe3 {[%clk 0:01:04]}  Qxe3+ {[%clk 0:00:51]} 19. fxe3 {[%clk 0:01:05]}  f6 {[%clk 0:00:49]} 20. Ne4 {[%clk 0:00:29]}  Bb7 {[%clk 0:00:11]} 21. Nc5 {[%clk 0:00:29]}  fxe5 {[%clk 0:00:05]} 22. O-O-O {[%clk 0:00:29]}  Bxg2 {[%clk 0:00:04]} 23. Rh2 {[%clk 0:00:29]}  Bf3 {[%clk 0:00:04]} 24. Rd3 {[%clk 0:00:25]}  e4 {[%clk 0:00:04]} 25. Rd4 {[%clk 0:00:25]}  Rb6 {[%clk 0:00:04]} 26. Rhd2 {[%clk 0:00:24]}  g6 {[%clk 0:00:03]} 27. a4 {[%clk 0:00:17]}  Bg7 {[%clk 0:00:03]} 28. Rb4 {[%clk 0:00:17]}  h5 {[%clk 0:00:01]} 29. Nxe4 {[%clk 0:00:14]}  Bxe4 {[%clk 0:00:01]} 30. Rxe4 {[%clk 0:00:15]}  g5 {[%clk 0:00:01]} 31. Rh2 {[%clk 0:00:06]}  Bf8 {[%clk 0:00:01]} 32. axb5 {[%clk 0:00:06]}  axb5 {[%clk 0:00:01]} 33. Re5 {[%clk 0:00:05]}  Bxd6 {[%clk 0:00:02]} 34. Rxg5 {[%clk 0:00:06]}  Ke7 {[%clk 0:00:02]} 35. Rhxh5 {[%clk 0:00:06]}  Rxh5 {[%clk 0:00:03]} 36. Rxh5 {[%clk 0:00:07]}  Bxg3 {[%clk 0:00:03]} 37. Kd2 {[%clk 0:00:07]}  Kd6 {[%clk 0:00:04]} 38. Ke2 {[%clk 0:00:08]}  Be5 {[%clk 0:00:04]} 39. c3 {[%clk 0:00:08]}  b4 {[%clk 0:00:05]} 40. c4 {[%clk 0:00:07]}  Rc6 {[%clk 0:00:06]} 41. Kd3 {[%clk 0:00:06]}  Bxb2 {[%clk 0:00:06]} 42. Rb5 {[%clk 0:00:06]}  Bc3 {[%clk 0:00:06]} 43. Ba4 {[%clk 0:00:07]}  Rc5 {[%clk 0:00:06]} 44. Rb7 {[%clk 0:00:07]}  Rc7 {[%clk 0:00:05]} 45. Rb6+ {[%clk 0:00:06]}  Ke7 {[%clk 0:00:05]} 46. Rb8 {[%clk 0:00:04]}  Ra7 {[%clk 0:00:04]} 47. Bc2 {[%clk 0:00:04]}  Be5 {[%clk 0:00:05]} 48. Rxb4 {[%clk 0:00:03]}  Ra3+ {[%clk 0:00:05]} 49. Ke4 {[%clk 0:00:03]}  Kf6 {[%clk 0:00:05]} 50. Rb7 {[%clk 0:00:03]}  Rc3 {[%clk 0:00:04]} 51. Bd3 {[%clk 0:00:03]}  d5+ {[%clk 0:00:05]} 52. cxd5 {[%clk 0:00:04]}  exd5+ {[%clk 0:00:06]} 53. Kxd5 {[%clk 0:00:05]}  Rxd3+ {[%clk 0:00:06]} 54. Ke4 {[%clk 0:00:06]}  Rd6 {[%clk 0:00:07]} 55. Rb5 {[%clk 0:00:06]}  Re6 {[%clk 0:00:07]} 56. Kd5 {[%clk 0:00:06]}  Bc7 {[%clk 0:00:06]} 57. e4 {[%clk 0:00:05]}  Re5+ {[%clk 0:00:06]} 58. Kc6 {[%clk 0:00:05]}  Re7 {[%clk 0:00:05]} 59. Rf5+ {[%clk 0:00:04]}  Ke6 {[%clk 0:00:05]} 60. Rb5 {[%clk 0:00:04]}  Be5 {[%clk 0:00:04]} 61. Rb7 {[%clk 0:00:04]}  Re8 {[%clk 0:00:04]} 62. Rh7 {[%clk 0:00:05]}  Rc8+ {[%clk 0:00:04]} 63. Kb7 {[%clk 0:00:05]}  Rc7+ {[%clk 0:00:02]} 64. Rxc7 {[%clk 0:00:05]}  Bxc7 {[%clk 0:00:03]} 65. Kxc7 {[%clk 0:00:05]}  Ke5 {[%clk 0:00:04]} 66. Kc6 {[%clk 0:00:06]}  Kxe4 {[%clk 0:00:05]} 1/2-1/2


[Site "https://www.chess.com"]

[Event "Titled Tuesday Blitz December 13 Late 2022"]
[White "Adel, Sara"]
[Black "Pham, Khoi"]
[WhiteFideId "10616764"]
[BlackFideId "1054988"]
[WhiteElo "1997"]
[BlackElo "2532"]
[Result "1-0"]
[Round "01"]
[TimeControl "180+1"]
[Date "2022.12.14"]
[WhiteClock "0:02:05"]
[BlackClock "0:01:07"]

1. e4 {[%clk 0:02:58]}  c6 {[%clk 0:02:59]} 2. d4 {[%clk 0:02:58]}  d5 {[%clk 0:03:00]} 3. Nc3 {[%clk 0:02:59]}  dxe4 {[%clk 0:03:00]} 4. Nxe4 {[%clk 0:03:00]}  Nf6 {[%clk 0:03:00]} 5. Ng3 {[%clk 0:02:59]}  h5 {[%clk 0:03:00]} 6. Bc4 {[%clk 0:02:57]}  h4 {[%clk 0:02:57]} 7. N3e2 {[%clk 0:02:57]}  Bf5 {[%clk 0:02:55]} 8. Nf3 {[%clk 0:02:57]}  e6 {[%clk 0:02:54]} 9. Bg5 {[%clk 0:02:57]}  Nbd7 {[%clk 0:02:54]} 10. h3 {[%clk 0:02:57]}  Be7 {[%clk 0:02:53]} 11. Nf4 {[%clk 0:02:56]}  Nd5 {[%clk 0:02:50]} 12. Bxe7 {[%clk 0:02:55]}  Qxe7 {[%clk 0:02:50]} 13. Nd3 {[%clk 0:02:55]}  O-O-O {[%clk 0:02:48]} 14. Qe2 {[%clk 0:02:54]}  N7b6 {[%clk 0:02:47]} 15. Bb3 {[%clk 0:02:54]}  Bxd3 {[%clk 0:02:44]} 16. Qxd3 {[%clk 0:02:52]}  Nf4 {[%clk 0:02:44]} 17. Qf1 {[%clk 0:02:52]}  e5 {[%clk 0:02:17]} 18. O-O-O {[%clk 0:02:52]}  e4 {[%clk 0:02:14]} 19. Ne5 {[%clk 0:02:51]}  f6 {[%clk 0:02:11]} 20. Nf7 {[%clk 0:02:40]}  Nbd5 {[%clk 0:02:01]} 21. Nxh8 {[%clk 0:02:38]}  Rxh8 {[%clk 0:02:02]} 22. Re1 {[%clk 0:02:35]}  f5 {[%clk 0:01:59]} 23. g3 {[%clk 0:02:35]}  hxg3 {[%clk 0:01:55]} 24. fxg3 {[%clk 0:02:36]}  Ne6 {[%clk 0:01:54]} 25. Qxf5 {[%clk 0:02:35]}  Rf8 {[%clk 0:01:41]} 26. Qxe4 {[%clk 0:02:34]}  Qg5+ {[%clk 0:01:41]} 27. Kb1 {[%clk 0:02:33]}  Nec7 {[%clk 0:01:39]} 28. Rhf1 {[%clk 0:02:32]}  Re8 {[%clk 0:01:37]} 29. Qf5+ {[%clk 0:02:17]}  Qxf5 {[%clk 0:01:31]} 30. Rxe8+ {[%clk 0:02:17]}  Kd7 {[%clk 0:01:27]} 31. Rxf5 {[%clk 0:02:18]}  Kxe8 {[%clk 0:01:28]} 32. c3 {[%clk 0:02:16]}  Ke7 {[%clk 0:01:28]} 33. c4 {[%clk 0:02:16]}  Nf6 {[%clk 0:01:25]} 34. Kc1 {[%clk 0:02:13]}  Ke6 {[%clk 0:01:25]} 35. g4 {[%clk 0:02:12]}  Kd6 {[%clk 0:01:24]} 36. Rg5 {[%clk 0:02:09]}  Ne6 {[%clk 0:01:23]} 37. Rg6 {[%clk 0:02:08]}  c5 {[%clk 0:01:12]} 38. d5 {[%clk 0:02:06]}  Nd4 {[%clk 0:01:07]} 39. Rxg7 {[%clk 0:02:05]} 1-0


[Site "https://www.chess.com"]

[Event "Titled Tuesday Blitz December 13 Late 2022"]
[White "Andrews, Todd"]
[Black "Han, Yichen"]
[WhiteFideId "2012456"]
[BlackFideId "1054430"]
[WhiteElo "2332"]
[BlackElo "2323"]
[Result "1-0"]
[Round "01"]
[TimeControl "180+1"]
[Date "2022.12.14"]
[WhiteClock "0:00:35"]
[BlackClock "0:00:04"]

1. e4 {[%clk 0:02:58]}  g6 {[%clk 0:02:58]} 2. Nf3 {[%clk 0:02:57]}  Bg7 {[%clk 0:02:59]} 3. d3 {[%clk 0:02:58]}  c6 {[%clk 0:02:57]} 4. g3 {[%clk 0:02:58]}  d5 {[%clk 0:02:58]} 5. Nbd2 {[%clk 0:02:59]}  e5 {[%clk 0:02:56]} 6. Bg2 {[%clk 0:02:59]}  Ne7 {[%clk 0:02:55]} 7. O-O {[%clk 0:02:59]}  O-O {[%clk 0:02:56]} 8. Re1 {[%clk 0:02:59]}  Nd7 {[%clk 0:02:56]} 9. c3 {[%clk 0:02:54]}  a5 {[%clk 0:02:56]} 10. a4 {[%clk 0:02:46]}  Nc5 {[%clk 0:02:50]} 11. Qc2 {[%clk 0:02:44]}  dxe4 {[%clk 0:02:47]} 12. dxe4 {[%clk 0:02:43]}  Be6 {[%clk 0:02:40]} 13. Bf1 {[%clk 0:02:39]}  h6 {[%clk 0:02:38]} 14. b4 {[%clk 0:02:33]}  axb4 {[%clk 0:02:36]} 15. cxb4 {[%clk 0:02:34]}  Na6 {[%clk 0:02:36]} 16. Ba3 {[%clk 0:02:32]}  Re8 {[%clk 0:02:32]} 17. Red1 {[%clk 0:02:31]}  Qc8 {[%clk 0:02:31]} 18. Nc4 {[%clk 0:02:28]}  Bxc4 {[%clk 0:02:14]} 19. Bxc4 {[%clk 0:02:28]}  Nc7 {[%clk 0:02:11]} 20. Bb2 {[%clk 0:02:14]}  b5 {[%clk 0:01:43]} 21. axb5 {[%clk 0:02:03]}  cxb5 {[%clk 0:01:40]} 22. Bb3 {[%clk 0:01:54]}  Na6 {[%clk 0:01:26]} 23. Qxc8 {[%clk 0:01:36]}  Rexc8 {[%clk 0:01:22]} 24. Rd7 {[%clk 0:01:36]}  Nc6 {[%clk 0:00:58]} 25. Bxf7+ {[%clk 0:01:30]}  Kh7 {[%clk 0:00:56]} 26. Nh4 {[%clk 0:01:20]}  Naxb4 {[%clk 0:00:36]} 27. Bxg6+ {[%clk 0:01:19]}  Kh8 {[%clk 0:00:36]} 28. Rxa8 {[%clk 0:01:17]}  Rxa8 {[%clk 0:00:35]} 29. Nf5 {[%clk 0:01:17]}  Ra2 {[%clk 0:00:20]} 30. Bc3 {[%clk 0:01:10]}  Bf8 {[%clk 0:00:19]} 31. Rh7+ {[%clk 0:00:59]}  Kg8 {[%clk 0:00:17]} 32. Rc7 {[%clk 0:00:58]}  Ra7 {[%clk 0:00:10]} 33. Rc8 {[%clk 0:00:51]}  Rb7 {[%clk 0:00:05]} 34. Nd6 {[%clk 0:00:46]}  Rb8 {[%clk 0:00:05]} 35. Rxb8 {[%clk 0:00:44]}  Nxb8 {[%clk 0:00:05]} 36. Bxb4 {[%clk 0:00:44]}  Nc6 {[%clk 0:00:06]} 37. Bc5 {[%clk 0:00:44]}  b4 {[%clk 0:00:06]} 38. Bf7+ {[%clk 0:00:40]}  Kg7 {[%clk 0:00:06]} 39. Bd5 {[%clk 0:00:40]}  Nd4 {[%clk 0:00:02]} 40. Nf5+ {[%clk 0:00:34]}  Nxf5 {[%clk 0:00:02]} 41. Bxf8+ {[%clk 0:00:35]}  Kxf8 {[%clk 0:00:02]} 42. exf5 {[%clk 0:00:36]}  Ke7 {[%clk 0:00:03]} 43. Kg2 {[%clk 0:00:35]}  Kd6 {[%clk 0:00:03]} 44. Bb3 {[%clk 0:00:36]}  Kc5 {[%clk 0:00:04]} 45. Kf3 {[%clk 0:00:36]}  Kd4 {[%clk 0:00:05]} 46. f6 {[%clk 0:00:36]}  Kc3 {[%clk 0:00:05]} 47. Be6 {[%clk 0:00:36]}  b3 {[%clk 0:00:03]} 48. Bxb3 {[%clk 0:00:35]}  Kxb3 {[%clk 0:00:04]} 49. Ke4 {[%clk 0:00:35]} 1-0


[Site "https://www.chess.com"]

[Event "Titled Tuesday Blitz December 13 Late 2022"]
[White "Banzea, Alexandru-Bogdan"]
[Black "Yoo, Christopher Woojin"]
[WhiteFideId "1232622"]
[BlackFideId "30909694"]
[WhiteElo "2294"]
[BlackElo "2463"]
[Result "0-1"]
[Round "01"]
[TimeControl "180+1"]
[Date "2022.12.13"]
[WhiteClock "0:00:12"]
[BlackClock "0:00:09"]

1. d4 {[%clk 0:02:51]}  Nf6 {[%clk 0:02:58]} 2. Bf4 {[%clk 0:02:48]}  c5 {[%clk 0:02:57]} 3. e3 {[%clk 0:02:47]}  Nd5 {[%clk 0:02:53]} 4. Bg3 {[%clk 0:02:31]}  Qb6 {[%clk 0:02:50]} 5. c4 {[%clk 0:02:29]}  Qxb2 {[%clk 0:02:19]} 6. cxd5 {[%clk 0:02:29]}  Qxa1 {[%clk 0:02:18]} 7. Qc2 {[%clk 0:02:29]}  Na6 {[%clk 0:02:15]} 8. Bxa6 {[%clk 0:02:25]}  bxa6 {[%clk 0:02:12]} 9. Nf3 {[%clk 0:02:26]}  d6 {[%clk 0:02:06]} 10. O-O {[%clk 0:02:02]}  Rb8 {[%clk 0:02:03]} 11. dxc5 {[%clk 0:01:48]}  Qb2 {[%clk 0:02:01]} 12. Qe4 {[%clk 0:01:45]}  Rb4 {[%clk 0:01:35]} 13. Nd4 {[%clk 0:01:23]}  dxc5 {[%clk 0:01:34]} 14. d6 {[%clk 0:01:01]}  cxd4 {[%clk 0:01:31]} 15. d7+ {[%clk 0:00:50]}  Bxd7 {[%clk 0:01:08]} 16. Qa8+ {[%clk 0:00:50]}  Rb8 {[%clk 0:01:09]} 17. Bxb8 {[%clk 0:00:51]}  f6 {[%clk 0:00:52]} 18. Bxa7+ {[%clk 0:00:33]}  Kf7 {[%clk 0:00:51]} 19. Bxd4 {[%clk 0:00:33]}  Qxa2 {[%clk 0:00:50]} 20. Nc3 {[%clk 0:00:33]}  Qe6 {[%clk 0:00:50]} 21. Ra1 {[%clk 0:00:21]}  Bb5 {[%clk 0:00:23]} 22. Nxb5 {[%clk 0:00:14]}  axb5 {[%clk 0:00:24]} 23. Rb1 {[%clk 0:00:14]}  g6 {[%clk 0:00:20]} 24. Rxb5 {[%clk 0:00:11]}  Bg7 {[%clk 0:00:21]} 25. Qb7 {[%clk 0:00:09]}  Rc8 {[%clk 0:00:20]} 26. g3 {[%clk 0:00:07]}  Rc1+ {[%clk 0:00:19]} 27. Kg2 {[%clk 0:00:08]}  Qc4 {[%clk 0:00:15]} 28. Bc5 {[%clk 0:00:05]}  Qf1+ {[%clk 0:00:14]} 29. Kf3 {[%clk 0:00:06]}  Qh1+ {[%clk 0:00:14]} 30. Ke2 {[%clk 0:00:05]}  Rc2+ {[%clk 0:00:11]} 31. Kd3 {[%clk 0:00:05]}  Qxb7 {[%clk 0:00:07]} 32. Rxb7 {[%clk 0:00:06]}  Rxc5 {[%clk 0:00:08]} 33. Kd4 {[%clk 0:00:07]}  Rc2 {[%clk 0:00:08]} 34. f4 {[%clk 0:00:08]}  Rxh2 {[%clk 0:00:08]} 35. e4 {[%clk 0:00:08]}  Rg2 {[%clk 0:00:08]} 36. e5 {[%clk 0:00:09]}  fxe5+ {[%clk 0:00:08]} 37. fxe5 {[%clk 0:00:10]}  Rxg3 {[%clk 0:00:08]} 38. Kd5 {[%clk 0:00:11]}  Rd3+ {[%clk 0:00:09]} 39. Ke4 {[%clk 0:00:11]}  Rd1 {[%clk 0:00:09]} 40. Ra7 {[%clk 0:00:12]}  Re1+ {[%clk 0:00:10]} 41. Kd5 {[%clk 0:00:12]}  Rxe5+ {[%clk 0:00:10]} 42. Kd4 {[%clk 0:00:12]}  Ra5+ {[%clk 0:00:09]} 0-1


[Site "https://www.chess.com"]

[Event "Titled Tuesday Blitz December 13 Late 2022"]
[White "Bernat, David"]
[Black "Souleidis, Georgios"]
[WhiteFideId "2099225"]
[BlackFideId "4206827"]
[WhiteElo "2309"]
[BlackElo "2401"]
[Result "0-1"]
[Round "01"]
[TimeControl "180+1"]
[Date "2022.12.14"]
[WhiteClock "0:00:03"]
[BlackClock "0:00:09"]

1. c4 {[%clk 0:02:52]}  e5 {[%clk 0:02:57]} 2. g3 {[%clk 0:02:51]}  Nc6 {[%clk 0:02:55]} 3. Bg2 {[%clk 0:02:51]}  Bc5 {[%clk 0:02:56]} 4. Nc3 {[%clk 0:02:51]}  a6 {[%clk 0:02:56]} 5. e3 {[%clk 0:02:51]}  d6 {[%clk 0:02:56]} 6. Nge2 {[%clk 0:02:52]}  Ba7 {[%clk 0:02:56]} 7. O-O {[%clk 0:02:52]}  h5 {[%clk 0:02:56]} 8. h3 {[%clk 0:02:51]}  f5 {[%clk 0:02:55]} 9. d4 {[%clk 0:02:44]}  h4 {[%clk 0:02:52]} 10. dxe5 {[%clk 0:01:55]}  Nxe5 {[%clk 0:02:23]} 11. b3 {[%clk 0:01:54]}  hxg3 {[%clk 0:02:21]} 12. Nxg3 {[%clk 0:01:52]}  Ne7 {[%clk 0:01:10]} 13. Nd5 {[%clk 0:01:34]}  N7g6 {[%clk 0:01:04]} 14. Bb2 {[%clk 0:01:26]}  O-O {[%clk 0:00:53]} 15. Nf4 {[%clk 0:01:23]}  Nxf4 {[%clk 0:00:40]} 16. exf4 {[%clk 0:01:24]}  Ng6 {[%clk 0:00:41]} 17. Bd5+ {[%clk 0:01:11]}  Rf7 {[%clk 0:00:41]} 18. Qh5 {[%clk 0:00:59]}  c6 {[%clk 0:00:33]} 19. Bxf7+ {[%clk 0:00:54]}  Kxf7 {[%clk 0:00:34]} 20. Nxf5 {[%clk 0:00:46]}  Qd7 {[%clk 0:00:24]} 21. Nxg7 {[%clk 0:00:34]}  Qxh3 {[%clk 0:00:22]} 22. Qg5 {[%clk 0:00:15]}  Qg4+ {[%clk 0:00:19]} 23. Qxg4 {[%clk 0:00:15]}  Bxg4 {[%clk 0:00:19]} 24. Rae1 {[%clk 0:00:09]}  Rg8 {[%clk 0:00:18]} 25. f5 {[%clk 0:00:08]}  Nf4 {[%clk 0:00:16]} 26. Ne6 {[%clk 0:00:08]}  Bxf5+ {[%clk 0:00:16]} 27. Ng7 {[%clk 0:00:07]}  Bh3 {[%clk 0:00:15]} 28. Kh2 {[%clk 0:00:07]}  Bd7 {[%clk 0:00:14]} 29. Rg1 {[%clk 0:00:07]}  Bxf2 {[%clk 0:00:12]} 30. Ref1 {[%clk 0:00:06]}  Nd3 {[%clk 0:00:10]} 31. Rg2 {[%clk 0:00:05]}  Rh8+ {[%clk 0:00:09]} 32. Nh5 {[%clk 0:00:03]}  Rxh5# {[%clk 0:00:09]} 0-1


[Site "https://www.chess.com"]

[Event "Titled Tuesday Blitz December 13 Late 2022"]
[White "Bilan, Danila"]
[Black "Sadhwani, Raunak"]
[WhiteFideId "24161918"]
[BlackFideId "35093487"]
[WhiteElo "2182"]
[BlackElo "2657"]
[Result "0-1"]
[Round "01"]
[TimeControl "180+1"]
[Date "2022.12.13"]
[WhiteClock "0:00:02"]
[BlackClock "0:00:54"]

1. d4 {[%clk 0:02:39]}  Nf6 {[%clk 0:02:58]} 2. Nf3 {[%clk 0:02:39]}  d6 {[%clk 0:02:58]} 3. Bg5 {[%clk 0:02:38]}  Nbd7 {[%clk 0:02:57]} 4. Nbd2 {[%clk 0:02:36]}  e5 {[%clk 0:02:57]} 5. e4 {[%clk 0:02:34]}  Be7 {[%clk 0:02:57]} 6. c3 {[%clk 0:02:33]}  O-O {[%clk 0:02:57]} 7. Bc4 {[%clk 0:02:29]}  c6 {[%clk 0:02:57]} 8. O-O {[%clk 0:02:25]}  b5 {[%clk 0:02:56]} 9. Bb3 {[%clk 0:02:25]}  Bb7 {[%clk 0:02:56]} 10. dxe5 {[%clk 0:02:19]}  dxe5 {[%clk 0:02:55]} 11. a4 {[%clk 0:02:18]}  a6 {[%clk 0:02:53]} 12. Qc2 {[%clk 0:02:13]}  Qc7 {[%clk 0:02:52]} 13. axb5 {[%clk 0:02:03]}  cxb5 {[%clk 0:02:53]} 14. Nh4 {[%clk 0:01:36]}  g6 {[%clk 0:02:46]} 15. Ba2 {[%clk 0:01:19]}  Nc5 {[%clk 0:02:40]} 16. Bxf6 {[%clk 0:01:11]}  Bxf6 {[%clk 0:02:38]} 17. Nhf3 {[%clk 0:01:11]}  Rfd8 {[%clk 0:02:33]} 18. Rfe1 {[%clk 0:01:00]}  Rac8 {[%clk 0:02:25]} 19. Nf1 {[%clk 0:00:30]}  Kg7 {[%clk 0:02:09]} 20. Ng3 {[%clk 0:00:15]}  h5 {[%clk 0:02:06]} 21. Bd5 {[%clk 0:00:13]}  Bxd5 {[%clk 0:01:54]} 22. exd5 {[%clk 0:00:12]}  Rxd5 {[%clk 0:01:54]} 23. Ne4 {[%clk 0:00:13]}  Nxe4 {[%clk 0:01:49]} 24. Qxe4 {[%clk 0:00:12]}  Rd6 {[%clk 0:01:46]} 25. Nxe5 {[%clk 0:00:10]}  Re8 {[%clk 0:01:46]} 26. f4 {[%clk 0:00:10]}  Rde6 {[%clk 0:01:25]} 27. Qd4 {[%clk 0:00:05]}  h4 {[%clk 0:01:23]} 28. Re2 {[%clk 0:00:03]}  h3 {[%clk 0:01:21]} 29. g3 {[%clk 0:00:03]}  Kg8 {[%clk 0:01:09]} 30. Rae1 {[%clk 0:00:03]}  Qb7 {[%clk 0:00:59]} 31. Qf2 {[%clk 0:00:03]}  Bd8 {[%clk 0:00:56]} 32. Nd3 {[%clk 0:00:03]}  Bb6 {[%clk 0:00:54]} 33. Nc5 {[%clk 0:00:03]}  Bxc5 {[%clk 0:00:53]} 34. Qxc5 {[%clk 0:00:01]}  Rxe2 {[%clk 0:00:54]} 35. Rxe2 {[%clk 0:00:02]}  Rxe2 {[%clk 0:00:54]} 0-1


[Site "https://www.chess.com"]

[Event "Titled Tuesday Blitz December 13 Late 2022"]
[White "Blanco Acevedo, Cristobal Jose"]
[Black "Sailer, Mike"]
[WhiteFideId "3900525"]
[BlackFideId "2012901"]
[WhiteElo "2273"]
[BlackElo "2109"]
[Result "1/2-1/2"]
[Round "01"]
[TimeControl "180+1"]
[Date "2022.12.14"]
[WhiteClock "0:00:37"]
[BlackClock "0:00:03"]

1. e4 {[%clk 0:02:58]}  d5 {[%clk 0:02:59]} 2. exd5 {[%clk 0:02:57]}  Qxd5 {[%clk 0:02:59]} 3. Nc3 {[%clk 0:02:57]}  Qd6 {[%clk 0:02:59]} 4. Nge2 {[%clk 0:02:55]}  Nf6 {[%clk 0:02:57]} 5. g3 {[%clk 0:02:55]}  Bf5 {[%clk 0:02:54]} 6. Bg2 {[%clk 0:02:55]}  c6 {[%clk 0:02:54]} 7. d3 {[%clk 0:02:54]}  e6 {[%clk 0:02:55]} 8. O-O {[%clk 0:02:52]}  Be7 {[%clk 0:02:55]} 9. Re1 {[%clk 0:02:51]}  O-O {[%clk 0:02:54]} 10. Bf4 {[%clk 0:02:50]}  Qd8 {[%clk 0:02:54]} 11. Ne4 {[%clk 0:02:45]}  Nxe4 {[%clk 0:02:47]} 12. dxe4 {[%clk 0:02:45]}  Bg6 {[%clk 0:02:45]} 13. c3 {[%clk 0:02:44]}  Nd7 {[%clk 0:02:45]} 14. Qb3 {[%clk 0:02:43]}  Qb6 {[%clk 0:02:35]} 15. Rad1 {[%clk 0:02:37]}  Qxb3 {[%clk 0:02:26]} 16. axb3 {[%clk 0:02:35]}  Nb6 {[%clk 0:02:26]} 17. Be3 {[%clk 0:02:24]}  Rfd8 {[%clk 0:02:17]} 18. Nf4 {[%clk 0:02:22]}  Rxd1 {[%clk 0:01:36]} 19. Rxd1 {[%clk 0:02:21]}  Rd8 {[%clk 0:01:36]} 20. Ra1 {[%clk 0:02:17]}  Nc8 {[%clk 0:01:27]} 21. Nxg6 {[%clk 0:02:12]}  hxg6 {[%clk 0:01:27]} 22. e5 {[%clk 0:02:11]}  a6 {[%clk 0:01:11]} 23. f4 {[%clk 0:02:09]}  Rd7 {[%clk 0:01:01]} 24. Kf2 {[%clk 0:02:08]}  Bd8 {[%clk 0:01:01]} 25. Bf3 {[%clk 0:01:48]}  Bb6 {[%clk 0:00:55]} 26. Rd1 {[%clk 0:01:48]}  Bxe3+ {[%clk 0:00:50]} 27. Kxe3 {[%clk 0:01:47]}  Rxd1 {[%clk 0:00:46]} 28. Bxd1 {[%clk 0:01:47]}  Kf8 {[%clk 0:00:47]} 29. Kd4 {[%clk 0:01:45]}  Ke7 {[%clk 0:00:47]} 30. b4 {[%clk 0:01:44]}  Kd7 {[%clk 0:00:47]} 31. c4 {[%clk 0:01:44]}  Kc7 {[%clk 0:00:48]} 32. g4 {[%clk 0:01:41]}  Ne7 {[%clk 0:00:47]} 33. Bc2 {[%clk 0:01:37]}  Kd7 {[%clk 0:00:44]} 34. h4 {[%clk 0:01:36]}  Ng8 {[%clk 0:00:38]} 35. f5 {[%clk 0:01:28]}  gxf5 {[%clk 0:00:33]} 36. gxf5 {[%clk 0:01:28]}  Nh6 {[%clk 0:00:29]} 37. fxe6+ {[%clk 0:01:09]}  Kxe6 {[%clk 0:00:25]} 38. Kc5 {[%clk 0:01:02]}  Kxe5 {[%clk 0:00:16]} 39. Kb6 {[%clk 0:01:02]}  Kd4 {[%clk 0:00:10]} 40. Bb3 {[%clk 0:00:58]}  f5 {[%clk 0:00:09]} 41. Kxb7 {[%clk 0:00:58]}  f4 {[%clk 0:00:10]} 42. Kxc6 {[%clk 0:00:54]}  f3 {[%clk 0:00:10]} 43. Bd1 {[%clk 0:00:54]}  f2 {[%clk 0:00:10]} 44. Be2 {[%clk 0:00:54]}  Nf5 {[%clk 0:00:09]} 45. b5 {[%clk 0:00:50]}  axb5 {[%clk 0:00:07]} 46. cxb5 {[%clk 0:00:50]}  Ng3 {[%clk 0:00:08]} 47. Bf1 {[%clk 0:00:47]}  Nxf1 {[%clk 0:00:08]} 48. b6 {[%clk 0:00:46]}  Ne3 {[%clk 0:00:09]} 49. b7 {[%clk 0:00:47]}  f1=Q {[%clk 0:00:08]} 50. b8=Q {[%clk 0:00:48]}  Qf3+ {[%clk 0:00:08]} 51. Kd7 {[%clk 0:00:47]}  Qf5+ {[%clk 0:00:08]} 52. Ke8 {[%clk 0:00:46]}  Qe6+ {[%clk 0:00:07]} 53. Kf8 {[%clk 0:00:44]}  Nd5 {[%clk 0:00:07]} 54. Qa7+ {[%clk 0:00:42]}  Ke4 {[%clk 0:00:04]} 55. Qxg7 {[%clk 0:00:40]}  Qf6+ {[%clk 0:00:03]} 56. Qxf6 {[%clk 0:00:40]}  Nxf6 {[%clk 0:00:03]} 57. b4 {[%clk 0:00:39]}  Nd5 {[%clk 0:00:02]} 58. b5 {[%clk 0:00:38]}  Kf5 {[%clk 0:00:02]} 59. Kf7 {[%clk 0:00:38]}  Kg4 {[%clk 0:00:02]} 60. Ke6 {[%clk 0:00:38]}  Nc7+ {[%clk 0:00:02]} 61. Kd7 {[%clk 0:00:37]}  Nxb5 {[%clk 0:00:03]} 62. h5 {[%clk 0:00:37]}  Kxh5 {[%clk 0:00:03]} 1/2-1/2


[Site "https://www.chess.com"]